bitfinex/quotes_ETHUSD_20241129
["timestamp","ask_amount","ask_price","bid_price","bid_amount"]
[1732899804354,0.8049,3603.0,3601.1,0.7557]
[1732899804504,0.8049,3603.0,3601.3,0.7544]
[1732899804699,0.8049,3603.0,3600.8,0.55]
[1732899804700,0.8049,3603.0,3601.5,0.7544]
[1732899805222,0.8049,3603.0,3601.7,0.8288]
[1732899805539,0.56823673,3602.5,3601.9,1.383]
[1732899805748,0.8049,3603.0,3602.0,0.32510052]
[1732899805947,4.0,3602.1,3601.9,1.383]
[1732899806150,0.7687,3603.3,3602.0,0.44161262]
[1732899806441,0.7687,3603.3,3602.1,0.44161262]
[1732899806642,0.7687,3603.3,3602.2,0.16984697]
[1732899806845,0.55740418,3602.6,3601.9,0.833]
[1732899807173,0.55740418,3602.6,3602.0,0.16993598]
[1732899807309,0.55740418,3602.6,3602.1,0.16993598]
[1732899807504,0.55740418,3602.6,3602.2,0.16993598]
[1732899807809,0.7687,3603.3,3602.3,0.16993598]
[1732899808008,0.7687,3603.3,3602.5,0.8025]
[1732899808740,0.7687,3603.3,3602.6,0.16985122]
[1732899808948,3.0,3602.6,3602.5,0.8025]
[1732899809103,3.0,3602.6,3602.5,0.97237031]
[1732899809738,0.56034841,3602.8,3602.5,0.97237031]
[1732899809940,0.56034841,3602.8,3602.6,0.16987031]
[1732899810208,0.56034841,3602.8,3602.7,0.16987031]
[1732899810810,0.768,3603.6,3602.7,0.44143192]
[1732899811104,0.54523839,3602.8,3602.0,0.28322074]
[1732899811311,0.54523839,3602.8,3602.1,1.22394175]
[1732899811538,0.54523839,3602.8,3602.2,0.44138139]
[1732899811742,0.54523839,3602.8,3602.3,0.16975803]
[1732899811907,0.54523839,3602.8,3602.4,0.16975803]
[1732899812125,0.54523839,3602.8,3601.8,0.8169]
[1732899812364,0.54523839,3602.8,3601.9,0.78104575]
[1732899812513,0.54523839,3602.8,3601.8,0.8169]
[1732899812514,4.0,3602.7,3602.0,0.78104575]
[1732899812714,4.0,3602.7,3602.1,0.78104575]
[1732899812936,3.0,3602.6,3602.2,0.44145036]
[1732899813158,3.0,3602.6,3601.8,0.8169]
[1732899813159,3.0,3602.6,3602.4,0.7541]
[1732899813463,0.56651339,3603.0,3602.5,0.44145036]
[1732899813757,0.8252,3604.0,3602.6,0.44145036]
[1732899813909,0.55107615,3603.2,3602.7,0.44145036]
[1732899814114,4.0,3602.8,3602.4,0.7541]
[1732899814415,0.55107615,3603.2,3602.5,0.44103711]
[1732899814614,0.55107615,3603.2,3602.6,0.44103711]
[1732899814820,0.55107615,3603.2,3602.7,0.4410275]
[1732899815040,0.55107615,3603.2,3602.8,0.16962192]
[1732899815312,0.55107615,3603.2,3602.9,0.16962192]
[1732899815628,0.55107615,3603.2,3603.0,0.92442192]
[1732899815838,0.55107615,3603.2,3603.1,0.16962192]
[1732899816063,7.55107615,3603.2,3603.1,0.16962192]
[1732899816573,7.55107615,3603.2,3602.7,0.8022]
[1732899816574,3.0,3603.1,3602.7,0.8022]
[1732899816862,3.0,3603.1,3602.8,0.16963026]
[1732899817026,3.0,3603.1,3602.9,0.4410085]
[1732899817363,0.55107615,3603.2,3603.0,0.16963026]
[1732899817562,0.8286,3603.9,3603.1,0.16963026]
[1732899817767,0.8286,3603.9,3603.2,0.16963026]
[1732899817972,0.8286,3603.9,3602.7,0.8022]
[1732899817973,3.0,3603.2,3602.7,0.8022]
[1732899818132,3.0,3603.2,3602.8,0.44098386]
[1732899818459,3.0,3603.2,3602.9,0.44098386]
[1732899818684,3.0,3603.2,3603.0,0.16960514]
[1732899818856,3.0,3603.2,3603.1,0.16960514]
[1732899819187,7.7772,3603.2,3602.0,0.7641]
[1732899819484,7.7772,3603.2,3602.1,0.78111924]
[1732899819684,7.7772,3603.2,3602.2,0.78111924]
[1732899819886,7.7772,3603.2,3602.3,0.44149189]
[1732899820188,3.0,3602.9,3602.4,0.44149189]
[1732899820486,3.0,3602.9,3602.5,0.44155763]
[1732899820662,3.0,3602.9,3602.6,0.16980053]
[1732899820861,3.0,3602.9,3602.0,0.7641]
[1732899821180,13.0,3608.7,3602.1,0.44155211]
[1732899821181,0.8288,3602.6,3602.1,0.44155211]
[1732899821382,0.8288,3602.6,3601.7,0.8037]
[1732899821569,0.8288,3602.6,3601.8,0.61168167]
[1732899821887,0.8288,3602.6,3601.9,0.78158306]
[1732899822069,3.0,3602.4,3602.0,0.78158306]
[1732899822297,3.0,3602.4,3602.1,0.44175414]
[1732899822488,3.0,3602.4,3602.3,0.8037]
[1732899822666,3.0,3602.4,3602.3,1.24545414]
[1732899823206,0.56250815,3602.7,3602.3,1.24545414]
[1732899823349,0.8123,3603.7,3602.4,0.44175414]
[1732899823551,0.8123,3603.7,3602.5,0.78100721]
[1732899823888,0.55478886,3603.1,3602.6,0.78100721]
[1732899824182,0.55478886,3603.1,3602.7,0.78007327]
[1732899824481,0.55478886,3603.1,3602.8,0.44090065]
[1732899824696,0.55478886,3603.1,3602.9,0.44090065]
[1732899824853,0.55478886,3603.1,3603.0,0.44090065]
[1732899825189,0.8123,3603.7,3603.0,0.44090065]
[1732899825360,0.8123,3603.7,3603.1,0.16957311]
[1732899825545,0.8123,3603.7,3603.2,0.16957311]
[1732899825743,0.8123,3603.7,3603.3,0.16957311]
[1732899825990,0.8123,3603.7,3602.4,1.04660742]
[1732899826232,4.0,3603.3,3602.5,0.78053239]
[1732899826539,3.39014822,3605.0,3602.7,0.7526]
[1732899826692,0.7834,3604.1,3602.9,0.7526]
[1732899826896,0.7834,3604.1,3603.0,0.78053239]
[1732899827197,0.55439077,3604.0,3603.2,0.7526]
[1732899827410,0.55439077,3604.0,3603.3,0.96216637]
[1732899827723,0.55439077,3604.0,3603.5,0.759]
[1732899827924,0.55439077,3604.0,3603.6,0.78051805]
[1732899828234,0.55439077,3604.0,3603.7,0.44116015]
[1732899828404,0.55439077,3604.0,3603.8,0.44116015]
[1732899828609,0.55439077,3604.0,3603.9,0.44116015]
[1732899829295,0.55439077,3604.0,3603.9,0.4410848]
[1732899831512,7.55439077,3604.0,3603.9,0.4410848]
[1732899832260,3.0,3603.9,3603.5,0.759]
[1732899834418,0.55439077,3604.0,3603.6,0.16936611]
[1732899834639,0.55439077,3604.0,3603.5,0.759]
[1732899834842,0.55439077,3604.0,3602.7,0.28236212]
[1732899835144,0.7988,3603.9,3602.8,1.26944392]
[1732899835350,4.0,3603.8,3602.8,0.99833591]
[1732899835553,3.0,3603.7,3602.9,0.16943591]
[1732899835760,3.0,3603.7,3603.0,0.16943591]
[1732899835918,3.0,3603.7,3602.8,0.8289]
[1732899836117,3.0,3603.7,3602.9,0.16954621]
[1732899836358,3.0,3603.5,3602.8,0.8289]
[1732899836559,3.0,3603.5,3602.9,0.16954774]
[1732899836724,3.0,3603.5,3603.0,0.16954774]
[1732899836925,3.0,3603.5,3602.8,0.8289]
[1732899837127,3.0,3603.5,3602.9,0.16910337]
[1732899837347,3.0,3603.5,3602.8,0.8289]
[1732899837549,3.0,3603.5,3602.9,0.16912193]
[1732899837882,3.0,3603.5,3602.8,0.8289]
[1732899838236,3.0,3603.5,3602.9,0.16908804]
[1732899838582,3.0,3603.5,3602.8,0.8289]
[1732899840559,0.56501534,3603.7,3603.1,0.16913159]
[1732899840872,0.56501534,3603.7,3603.0,0.826]
[1732899841076,0.56501534,3603.7,3603.1,0.16915554]
[1732899841275,0.56501534,3603.7,3603.2,0.16915554]
[1732899841497,0.56501534,3603.7,3602.7,1.10836212]
[1732899841653,0.7704,3603.6,3602.8,0.16914635]
[1732899841854,0.7704,3603.6,3602.9,0.16914635]
[1732899842255,0.56501534,3603.7,3602.7,1.10836212]
[1732899842663,5.77538,3603.2,3602.7,1.10836212]
[1732899842864,5.77538,3603.2,3602.7,0.28236212]
[1732899843188,2.7751,3603.5,3602.7,0.28236212]
[1732899843189,2.7752,3603.4,3602.9,0.7802]
[1732899843401,2.77524,3603.3,3602.9,0.7802]
[1732899843702,0.56501534,3603.7,3602.9,0.7802]
[1732899843703,2.77533,3603.2,3602.9,0.7802]
[1732899843895,0.56501534,3603.7,3602.9,0.7802]
[1732899844108,2.77545,3603.1,3603.0,0.16914943]
[1732899844851,2.77531,3603.2,3602.3,0.2776]
[1732899845054,2.7757,3602.7,3602.4,0.43977233]
[1732899845294,2.7757,3602.7,3602.5,0.16913912]
[1732899845478,3.0,3603.0,3602.6,0.92403912]
[1732899845668,3.0,3603.0,3602.7,0.16913912]
[1732899845869,3.0,3603.2,3602.8,0.16913912]
[1732899846062,0.8296,3603.9,3602.6,0.7549]
[1732899846267,2.77519,3603.4,3602.8,0.7549]
[1732899846483,2.77519,3603.4,3602.9,0.16910358]
[1732899846677,2.77519,3603.4,3603.0,0.16910358]
[1732899846903,2.77519,3603.4,3602.8,0.90211814]
[1732899847056,2.77519,3603.4,3602.9,0.16907347]
[1732899847256,2.77519,3603.4,3603.0,0.93967347]
[1732899847478,2.77519,3603.4,3603.1,0.16903549]
[1732899847678,2.77519,3603.4,3602.9,0.2776]
[1732899847679,3.0,3603.5,3603.2,0.7706]
[1732899847891,5.77509,3603.5,3603.2,0.7706]
[1732899848401,2.77516,3603.4,3603.2,0.7706]
[1732899848652,5.77509,3603.5,3603.2,0.7706]
[1732899848763,5.77492,3603.7,3603.2,0.7706]
[1732899848967,3.0,3603.7,3603.2,0.7706]
[1732899849301,5.77493,3603.7,3603.2,0.7706]
[1732899849476,2.775,3603.6,3603.2,0.7706]
[1732899849674,5.77487,3603.8,3603.2,0.7706]
[1732899850003,3.0,3603.8,3603.2,0.7706]
[1732899850172,3.0,3604.0,3603.3,0.55]
[1732899850360,2.77468,3604.1,3603.4,0.97402206]
[1732899850566,2.77468,3604.1,3603.5,0.32062427]
[1732899850801,2.77468,3604.1,3603.6,0.16820012]
[1732899850976,2.77468,3604.1,3603.5,0.15240221]
[1732899851176,2.77468,3604.1,3603.6,0.16818592]
[1732899851388,2.77468,3604.1,3603.7,0.8218]
[1732899852602,2.77412,3604.8,3603.8,0.55]
[1732899852764,2.77412,3604.8,3603.7,2.77486]
[1732899852765,2.77419,3604.7,3604.1,0.7915]
[1732899852964,2.77433,3604.5,3604.2,0.16814836]
[1732899853166,2.77423,3604.6,3604.1,0.7915]
[1732899853402,2.7744,3604.4,3604.1,0.7915]
[1732899853764,2.77454,3604.2,3603.6,0.7657]
[1732899854206,5.77433,3604.5,3603.8,0.766]
[1732899854376,2.77408,3604.8,3603.8,0.766]
[1732899854578,2.77408,3604.8,3604.0,0.8017]
[1732899854786,3.0,3604.8,3604.2,0.55]
[1732899854993,3.0,3604.8,3604.3,0.8017]
[1732899855195,5.77407,3604.8,3604.3,0.8017]
[1732899855505,2.77433,3604.5,3604.3,0.8017]
[1732899855866,5.77409,3604.8,3604.3,0.8017]
[1732899856069,2.7742,3604.7,3604.3,0.8017]
[1732899856289,5.77409,3604.8,3604.3,0.8017]
[1732899856488,3.0,3604.9,3604.3,0.8017]
[1732899856933,5.77405,3604.9,3604.3,1.159331]
[1732899857103,5.77394,3605.0,3604.2,2.77453]
[1732899857305,5.77394,3605.0,3604.3,0.8045]
[1732899857726,3.0,3604.8,3604.3,0.8045]
[1732899859533,5.77409,3604.8,3604.3,0.8045]
[1732899860138,5.77398,3605.0,3604.3,0.8045]
[1732899860436,5.77398,3605.0,3604.4,0.7704]
[1732899860594,2.77389,3605.1,3604.5,0.814]
[1732899860794,2.77378,3605.2,3604.5,0.814]
[1732899861133,2.77423,3604.6,3604.5,0.814]
[1732899861704,2.77439,3604.4,3603.9,0.814]
[1732899862303,2.77439,3604.4,3604.0,0.358886]
[1732899862843,2.77425,3604.6,3604.1,0.766]
[1732899863342,2.77438,3604.4,3604.1,0.766]
[1732899863505,2.77449,3604.3,3604.1,0.766]
[1732899864932,2.77428,3604.6,3604.1,0.766]
[1732899865139,2.77436,3604.5,3604.2,0.354071]
[1732899865453,2.77436,3604.5,3604.1,0.766]
[1732899865826,2.77418,3604.7,3604.1,0.766]
[1732899866033,2.77406,3604.9,3604.4,0.8264]
[1732899866471,2.77409,3604.8,3604.4,0.8264]
[1732899867057,2.77409,3604.8,3604.5,0.2773]
[1732899867259,2.77409,3604.8,3604.5,0.665116]
[1732899867642,2.77397,3605.0,3604.5,0.665116]
[1732899867827,2.77397,3605.0,3604.6,0.8172]
[1732899868168,2.77379,3605.2,3604.6,3.05152]
[1732899868329,2.77379,3605.2,3604.7,0.8172]
[1732899868531,2.77379,3605.2,3604.7,1.5202856]
[1732899868736,2.77379,3605.2,3604.8,0.8172]
[1732899869240,0.8295,3605.1,3604.0,0.8172]
[1732899869574,2.77459,3604.2,3604.0,0.8172]
[1732899869737,2.77461,3604.1,3604.0,0.8172]
[1732899870243,2.77489,3603.8,3603.6,0.8292]
[1732899870667,2.77492,3603.7,3603.6,0.8292]
[1732899871587,2.77492,3603.7,3603.6,1.1065]
[1732899871951,2.77483,3603.9,3603.6,1.1065]
[1732899872164,2.77483,3603.9,3603.6,0.8292]
[1732899872571,2.77464,3604.1,3603.6,0.8292]
[1732899872779,2.77449,3604.3,3603.5,0.15240221]
[1732899872780,2.77456,3604.2,3603.5,0.15240221]
[1732899872948,2.77449,3604.3,3603.8,0.8047]
[1732899873284,2.77449,3604.3,3604.0,0.8047]
[1732899873495,2.77438,3604.5,3604.0,0.8047]
[1732899873659,2.77428,3604.6,3604.2,0.8047]
[1732899873982,0.8082,3605.5,3604.4,0.8047]
[1732899874184,3.0,3605.5,3604.6,0.7782]
[1732899874388,2.77394,3605.0,3604.6,0.7782]
[1732899874694,2.77386,3605.1,3604.6,0.7782]
[1732899876087,2.77389,3605.1,3604.6,0.7782]
[1732899876401,2.77397,3605.0,3604.6,0.7782]
[1732899877069,2.77389,3605.1,3604.6,0.7782]
[1732899877401,2.77379,3605.2,3604.6,0.7782]
[1732899877604,2.77389,3605.1,3604.7,0.55]
[1732899878277,2.77403,3604.9,3604.7,0.55]
[1732899878666,2.77401,3604.9,3604.7,0.55]
[1732899878903,2.77407,3604.8,3604.6,0.7782]
[1732899879315,2.77366,3605.4,3604.6,0.7782]
[1732899879460,2.7741,3604.8,3604.6,0.7782]
[1732899879906,2.77415,3604.7,3604.6,0.7782]
[1732899880477,2.77361,3605.4,3604.6,0.94645987]
[1732899880671,2.77415,3604.7,3604.6,0.7782]
[1732899881598,2.77447,3604.3,3604.0,0.793]
[1732899881794,2.77485,3603.8,3603.4,0.793]
[1732899882000,2.77485,3603.8,3603.5,0.43778452]
[1732899882167,2.77485,3603.8,3603.6,0.16837454]
[1732899882479,2.77485,3603.8,3603.7,0.16837454]
[1732899882812,2.7747,3604.0,3603.7,0.16843973]
[1732899882967,2.77446,3604.3,3603.4,1.0703]
[1732899883167,2.77462,3604.1,3603.5,0.98790452]
[1732899883369,2.77462,3604.1,3603.7,0.8147]
[1732899883569,2.77477,3603.9,3603.8,0.16842069]
[1732899884423,2.77477,3603.9,3603.8,0.16846142]
[1732899884698,2.77477,3603.9,3603.7,0.8147]
[1732899884906,2.77477,3603.9,3603.8,0.55]
[1732899885272,2.77484,3603.8,3603.7,0.55]
[1732899885474,2.77477,3603.9,3603.7,0.55]
[1732899885781,2.77484,3603.8,3603.7,0.55]
[1732899886116,2.77477,3603.9,3603.6,0.55]
[1732899887117,2.77462,3604.1,3603.6,0.71446]
[1732899887404,2.77448,3604.3,3603.6,0.71446]
[1732899887607,2.77448,3604.3,3603.8,0.55]
[1732899887988,2.77433,3604.5,3603.8,0.55]
[1732899888171,2.77418,3604.7,3604.0,1.313]
[1732899888371,2.77436,3604.5,3604.0,1.313]
[1732899888679,2.77438,3604.4,3604.0,1.313]
[1732899888866,2.77449,3604.3,3604.0,1.313]
[1732899889065,2.77461,3604.1,3604.0,1.313]
[1732899890326,0.54406438,3604.9,3604.2,0.55]
[1732899890531,0.54406438,3604.9,3604.4,0.55]
[1732899890532,2.77431,3604.5,3604.4,0.55]
[1732899890698,2.77431,3604.5,3604.3,0.19207]
[1732899890699,2.77447,3604.3,3604.2,0.55]
[1732899890894,2.77447,3604.3,3604.2,0.71738685]
[1732899891104,2.77447,3604.3,3604.2,0.55]
[1732899891553,2.77447,3604.3,3603.8,0.7605]
[1732899891843,2.775,3603.6,3603.5,0.7605]
[1732899892001,2.775,3603.6,3603.5,0.16751286]
[1732899892343,2.775,3603.6,3602.9,0.2773]
[1732899892344,2.775,3603.6,3603.1,0.7601]
[1732899892636,2.77508,3603.5,3603.2,0.16748289]
[1732899892846,2.77508,3603.5,3603.3,0.16748289]
[1732899892999,2.77508,3603.5,3603.4,0.16748289]
[1732899893197,2.77487,3603.8,3603.4,0.16748289]
[1732899893397,2.77487,3603.8,3603.2,0.55]
[1732899893602,2.77487,3603.8,3603.1,0.7601]
[1732899893603,2.775,3603.6,3603.4,0.55]
[1732899894146,2.775,3603.6,3603.2,0.55]
[1732899894435,2.77487,3603.8,3603.2,0.55]
[1732899894597,2.7747,3604.0,3603.4,0.55]
[1732899895543,2.77437,3604.5,3603.4,0.55]
[1732899895701,0.560605,3604.6,3603.8,0.55]
[1732899895906,3.334835,3604.6,3604.2,0.55]
[1732899896609,2.77334,3605.8,3604.2,0.55]
[1732899896610,0.7789,3605.9,3604.3,0.8182]
[1732899896942,2.7739,3605.1,3604.6,0.55]
[1732899897244,0.7789,3605.9,3604.6,0.55]
[1732899897245,2.7733,3605.8,3604.6,0.55]
[1732899897544,2.77382,3605.2,3604.6,0.55]
[1732899897744,2.77391,3605.1,3604.6,0.55]
[1732899898609,2.77374,3605.3,3604.6,0.55]
[1732899899016,2.77357,3605.5,3604.6,3.32415]
[1732899899218,2.77355,3605.5,3604.8,0.55]
[1732899899547,2.77355,3605.5,3605.0,0.55]
[1732899900950,2.77362,3605.4,3605.0,0.55]
[1732899901150,3.0,3606.0,3605.0,0.55]
[1732899901315,1.35112163,3606.1,3605.0,0.55]
[1732899901650,2.77374,3605.3,3605.0,0.55]
[1732899902017,2.7736,3605.5,3605.0,0.55]
[1732899902203,2.77369,3605.3,3605.0,0.55]
[1732899902713,2.77379,3605.2,3605.0,0.55]
[1732899903712,2.77363,3605.4,3605.0,0.55]
[1732899903907,2.77384,3605.1,3605.0,0.55]
[1732899904352,2.77414,3604.8,3604.5,0.764]
[1732899904839,2.77391,3605.1,3604.5,0.764]
[1732899904840,2.77398,3605.0,3604.5,0.764]
[1732899905006,2.77368,3605.4,3604.5,0.764]
[1732899905201,0.5634295,3605.4,3604.6,0.353833]
[1732899905405,0.5634295,3605.4,3604.5,0.764]
[1732899905706,2.77383,3605.2,3604.6,0.55]
[1732899905929,2.77383,3605.2,3522.2,4.06204906]
[1732899906340,3.1,3601.6,3598.7,2.77707553]
[1732899906643,2.97523,3603.3,3600.2,2.77756]
[1732899906644,0.1,3602.2,3600.2,2.77756]
[1732899906849,3.0,3602.2,3600.3,0.027765]
[1732899907146,5.77594,3602.4,3600.4,3.2061175]
[1732899907310,0.9242,3602.7,3600.6,2.7773]
[1732899907514,3.69994,3602.7,3600.7,3.12834996]
[1732899907849,2.77584,3602.6,3600.7,3.55707746]
[1732899908008,2.77589,3602.5,3600.7,3.55707746]
[1732899908204,2.77589,3602.5,3600.7,0.77986746]
[1732899908544,2.77589,3602.5,3600.7,0.35113996]
[1732899908709,2.77589,3602.5,3600.8,0.312851]
[1732899908905,2.77589,3602.5,3601.1,0.55]
[1732899909106,2.77589,3602.5,3601.2,0.02776004]
[1732899909507,2.77593,3602.4,3601.2,0.02776004]
[1732899909735,2.77611,3602.2,3601.1,0.55]
[1732899910043,2.77618,3602.1,3601.1,0.55]
[1732899910509,2.77593,3602.4,3601.1,0.55]
[1732899910821,2.77609,3602.2,3601.1,0.55]
[1732899911019,2.776,3602.3,3601.1,0.55]
[1732899911243,2.77593,3602.4,3601.1,0.55]
[1732899911539,2.77618,3602.1,3601.1,0.55]
[1732899911743,0.8242,3602.7,3601.2,0.02776142]
[1732899911953,2.77563,3602.8,3601.3,0.55]
[1732899912110,2.77563,3602.8,3601.5,0.55]
[1732899912505,2.77583,3602.6,3601.5,0.55]
[1732899912926,2.77598,3602.4,3601.5,0.55]
[1732899913350,0.1,3603.1,3601.5,0.55]
[1732899913351,2.77614,3602.2,3601.5,0.55]
[1732899913547,5.5517,3602.5,3601.5,0.55]
[1732899913850,0.1,3602.8,3601.5,0.55]
[1732899914019,2.77592,3602.4,3601.5,0.55]
[1732899914551,2.77594,3602.4,3601.5,0.55]
[1732899914907,2.77569,3602.7,3601.5,0.55]
[1732899915235,0.1,3602.8,3601.5,0.55]
[1732899915549,2.77615,3602.2,3601.5,0.55]
[1732899916050,2.77593,3602.4,3601.5,0.55]
[1732899916293,2.77621,3602.1,3601.5,0.55]
[1732899917246,2.77554,3602.9,3601.5,0.55]
[1732899917453,0.1,3603.0,3601.7,0.55]
[1732899917621,0.1,3602.9,3601.7,0.55]
[1732899918018,2.77608,3602.2,3601.7,0.55]
[1732899918352,2.77623,3602.0,3601.7,0.55]
[1732899918558,2.77608,3602.2,3601.7,0.55]
[1732899919221,2.77638,3601.8,3601.7,0.55]
[1732899919458,2.77643,3601.8,3601.1,0.55]
[1732899919627,2.7763,3602.0,3601.1,0.55]
[1732899919830,2.77648,3601.7,3601.1,0.55]
[1732899920064,0.1,3602.6,3601.1,0.55]
[1732899920065,2.77596,3602.4,3601.1,0.55]
[1732899920364,2.7764,3601.8,3601.1,0.55]
[1732899921293,2.77647,3601.7,3601.1,0.55]
[1732899922463,0.1,3602.7,3601.1,0.55]
[1732899922464,0.1,3603.0,3601.1,0.55]
[1732899922674,2.77582,3602.6,3601.7,0.55]
[1732899923035,2.77582,3602.6,3601.9,0.55]
[1732899923231,2.77538,3603.1,3601.9,0.55]
[1732899923466,0.8642,3603.2,3601.9,0.55]
[1732899923631,0.66002776,3603.4,3602.1,3.55]
[1732899923835,0.66002776,3603.4,3602.1,0.55]
[1732899924062,0.1,3603.4,3602.3,0.55]
[1732899924775,2.7755,3603.0,3602.3,0.55]
[1732899925071,2.7753,3603.3,3602.4,2.77587]
[1732899925370,2.77518,3603.4,3602.7,0.55]
[1732899925675,2.77531,3603.2,3602.7,0.55]
[1732899926537,0.1,3603.6,3602.7,0.55]
[1732899926740,2.77516,3603.4,3602.7,0.55]
[1732899927050,2.77541,3603.1,3602.7,0.9859]
[1732899927275,2.77531,3603.2,3602.7,0.55]
[1732899927451,2.7754,3603.1,3602.7,0.55]
[1732899927652,0.1,3603.4,3602.5,0.2773]
[1732899927866,2.77569,3602.7,3602.5,0.2773]
[1732899928071,2.7759,3602.5,3602.2,0.8093]
[1732899928260,2.7759,3602.5,3601.6,0.8093]
[1732899928261,2.77585,3602.5,3601.6,0.8093]
[1732899928445,2.77622,3602.1,3601.6,0.8093]
[1732899928645,2.77621,3602.1,3601.6,0.8093]
[1732899928965,0.1,3603.1,3601.6,4.32726735]
[1732899929174,2.77572,3602.7,3601.7,0.46048299]
[1732899929347,2.77572,3602.7,3601.7,0.71002674]
[1732899929548,2.77572,3602.7,3601.8,0.55]
[1732899929857,2.77572,3602.7,3602.0,0.55]
[1732899930352,2.77554,3602.9,3602.0,3.32622]
[1732899930575,3.60758,3603.2,3602.2,0.55]
[1732899930746,2.77551,3603.0,3602.2,3.32603]
[1732899930950,2.77538,3603.2,3602.3,2.77599]
[1732899931151,2.77538,3603.2,3602.5,1.3556]
[1732899931373,0.8526,3603.6,3602.5,1.3556]
[1732899931374,3.52763,3603.6,3602.5,1.3556]
[1732899931575,2.77518,3603.4,3602.7,3.32563]
[1732899931820,2.77529,3603.3,3602.9,0.55]
[1732899932172,0.0692952,3603.2,3602.9,0.55]
[1732899932707,0.1,3603.8,3602.9,0.55]
[1732899932910,2.77535,3603.2,3602.6,0.55]
[1732899933115,0.1,3603.8,3602.6,0.55]
[1732899933116,0.1,3603.8,3602.6,3.55]
[1732899933282,0.06946098,3603.1,3602.8,0.55]
[1732899933484,0.06945581,3603.0,3602.8,0.55]
[1732899933681,2.77515,3603.4,3602.8,0.55]
[1732899933876,0.06963164,3603.3,3602.8,0.55]
[1732899934979,2.84487164,3603.3,3602.8,0.55]
[1732899935178,2.84487164,3603.3,3603.0,0.55]
[1732899935477,2.77546,3603.0,3602.7,0.55]
[1732899935672,0.06942581,3602.9,3602.6,0.55]
[1732899936114,0.06937389,3602.8,3602.6,0.55]
[1732899936319,2.77532,3603.2,3602.6,3.55]
[1732899936474,2.77532,3603.2,3602.8,0.55]
[1732899936678,0.06954974,3603.1,3602.8,0.55]
[1732899937097,2.77538,3603.1,3602.8,0.55]
[1732899937422,0.06948063,3603.0,3602.8,0.55]
[1732899939713,2.77513,3603.5,3602.8,0.55]
[1732899939915,2.77513,3603.5,3603.0,0.55]
[1732899940213,0.06970395,3603.4,3603.0,0.55]
[1732899940628,2.84486395,3603.4,3603.0,0.55]
[1732899940779,0.06970395,3603.4,3603.0,0.55]
[1732899941122,0.06970395,3603.4,3603.0,3.32545]
[1732899941296,2.77481,3603.9,3603.2,0.55]
[1732899941497,0.06765135,3603.8,3603.2,3.32528]
[1732899941709,0.06765135,3603.8,3603.4,0.55]
[1732899942032,2.77455,3604.2,3603.5,2.77501]
[1732899942200,2.77441,3604.4,3603.8,0.55]
[1732899942516,2.77441,3604.4,3603.8,3.32483]
[1732899942722,0.9114,3604.9,3603.8,3.32483]
[1732899942723,3.58544,3604.9,3604.1,0.7508]
[1732899943029,2.77423,3604.6,3604.1,0.7508]
[1732899943186,0.1,3605.1,3604.2,0.55]
[1732899943387,0.06342637,3604.5,3604.2,0.55]
[1732899943630,0.54998861,3604.8,3604.2,3.3245]
[1732899943786,0.06124647,3604.4,3604.3,0.40753]
[1732899943990,0.54998861,3604.8,3604.4,0.55]
[1732899944221,3.32406861,3604.8,3604.4,0.55]
[1732899944735,0.54998861,3604.8,3604.4,0.55]
[1732899944931,2.77392,3605.0,3604.4,3.32437]
[1732899945106,2.77383,3605.2,3604.6,0.55]
[1732899945628,2.77383,3605.2,3604.6,3.32422]
[1732899945823,2.77357,3605.5,3604.8,0.55]
[1732899945992,2.77357,3605.5,3605.0,0.55]
[1732899946334,2.77357,3605.5,3604.8,2.774]
[1732899946335,2.77364,3605.4,3604.8,0.55]
[1732899946492,2.77346,3605.6,3604.8,1.6280647]
[1732899946828,2.77368,3605.4,3604.8,4.6280647]
[1732899947040,0.05785237,3605.5,3604.8,4.6280647]
[1732899947196,0.0577353,3605.3,3604.8,7.4020847]
[1732899947398,0.05591003,3605.4,3605.0,3.55]
[1732899947592,2.77344,3605.7,3605.2,0.55]
[1732899948111,3.32142661,3605.9,3605.2,3.32376]
[1732899948316,3.32142661,3605.9,3605.1,0.55]
[1732899948520,2.77343,3605.7,3605.1,0.55]
[1732899949229,2.77352,3605.6,3605.1,0.55]
[1732899949417,0.54815661,3605.9,3605.3,0.55]
[1732899949619,0.54815661,3605.9,3604.3,0.40753]
[1732899949620,2.77382,3605.2,3604.3,0.40753]
[1732899949791,2.77411,3604.8,3604.2,0.8115]
[1732899949987,2.77431,3604.5,3604.2,0.8115]
[1732899950253,2.77402,3604.9,3604.2,0.8115]
[1732899950539,0.1,3605.1,3604.3,0.358611]
[1732899950540,0.05564798,3604.8,3604.3,0.358611]
[1732899950706,2.7741,3604.8,3604.3,0.358611]
[1732899950911,0.05561167,3604.7,3604.3,0.358611]
[1732899951416,0.05561167,3604.7,3604.4,0.55]
[1732899953803,2.7743,3604.5,3604.2,0.8115]
[1732899954143,2.77463,3604.1,3603.8,0.7733]
[1732899954302,2.77463,3604.1,3603.9,0.37733]
[1732899954639,0.05508427,3604.0,3603.8,0.7733]
[1732899955135,0.05508427,3604.0,3602.5,0.84175862]
[1732899955136,0.05499869,3603.9,3603.0,0.7621]
[1732899955296,2.77502,3603.6,3603.0,0.7621]
[1732899955497,2.82991433,3603.5,3603.0,0.7621]